fUSD/lending_fUSD_20250211
["ID","MTS","AMOUNT","RATE_DAILY","PERIOD"]
[352729041,1739280656683,-500.0,0.00011095,2]
[352729042,1739280656692,-500.0,0.00011095,2]
[352729043,1739280656702,-500.0,0.00011095,2]
[352729044,1739280656711,-500.0,0.00011095,2]
[352729045,1739280656720,-503.04843873,0.00011095,2]
[352729046,1739280656729,-500.0,0.00011095,2]
[352729047,1739280656738,-500.0,0.00011095,2]
[352729048,1739280656747,-500.0,0.00011095,2]
[352729049,1739280656756,-500.0,0.00011095,2]
[352729050,1739280656765,-500.0,0.00011095,2]
[352729051,1739280656774,-500.0,0.00011095,2]
[352729052,1739280656783,-583.71,0.00011095,2]
[352729053,1739280656792,-500.0,0.00011095,2]
[352729054,1739280656802,-500.0,0.00011095,2]
[352729055,1739280656810,-1184.98,0.00011095,2]
[352729056,1739280656821,-500.0,0.00011095,2]
[352729057,1739280656831,-500.0,0.00011095,2]
[352729058,1739280656840,-1086.02,0.00011095,2]
[352729059,1739280656849,-500.0,0.00011095,2]
[352729060,1739280656858,-537.67,0.00011095,2]
[352729061,1739280656869,-500.0,0.00011095,2]
[352729062,1739280656878,-781.03,0.00011095,2]
[352729063,1739280656887,-500.0,0.00011095,2]
[352729064,1739280656896,-2420.99,0.00011095,2]
[352729065,1739280656906,-500.0,0.00011095,2]
[352729066,1739280656915,-501.83,0.00011095,2]
[352729067,1739280656924,-500.0,0.00011095,2]
[352729068,1739280656933,-500.0,0.00011095,2]
[352729069,1739280656942,-855.48,0.00011095,2]
[352729070,1739280656952,-500.0,0.00011095,2]
[352729071,1739280656961,-500.0,0.00011095,2]
[352729072,1739280656970,-500.0,0.00011095,2]
[352729073,1739280656979,-1000.0,0.00011095,2]
[352729074,1739280656988,-540.83,0.00011095,2]
[352729075,1739280656998,-500.0,0.00011095,2]
[352729076,1739280657007,-507.33721777,0.00011095,2]
[352729077,1739280657016,-500.0,0.00011095,2]
[352729078,1739280657025,-610.65,0.00011095,2]
[352729079,1739280657035,-1852.35,0.00011095,2]
[352729080,1739280657044,-500.0,0.00011095,2]
[352729081,1739280657053,-500.0,0.00011095,2]
[352729082,1739280657063,-500.0,0.00011095,2]
[352729083,1739280657072,-777.34,0.00011095,2]
[352729084,1739280657081,-500.0,0.00011095,2]
[352729085,1739280657091,-500.0,0.00011095,2]
[352729086,1739280657100,-2139.5,0.00011095,2]
[352729087,1739280657110,-979.52,0.00011095,2]
[352729088,1739280657120,-500.0,0.00011095,2]
[352729089,1739280657129,-500.0,0.00011095,2]
[352729090,1739280657138,-1080.04,0.00011095,2]
[352729091,1739280657147,-640.51,0.00011095,2]
[352729092,1739280657157,-977.66,0.00011095,2]
[352729093,1739280657166,-500.0,0.00011095,2]
[352729094,1739280657176,-500.0,0.00011095,2]
[352729095,1739280657185,-500.0,0.00011095,2]
[352729096,1739280657194,-2742.89,0.00011095,2]
[352729097,1739280657204,-1778.52,0.00011095,2]
[352729098,1739280657213,-500.0,0.00011095,2]
[352729099,1739280657224,-500.0,0.00011095,2]
[352729100,1739280657233,-500.0,0.00011095,2]
[352729101,1739280657243,-500.0,0.00011095,2]
[352729102,1739280657252,-500.772714,0.00011095,2]
[352729103,1739280657263,-500.0,0.00011095,2]
[352729104,1739280657272,-642.23,0.00011095,2]
[352729105,1739280657282,-1776.94,0.00011095,2]
[352729106,1739280657291,-2559.01,0.00011095,2]
[352729107,1739280657302,-500.0,0.00011095,2]
[352729108,1739280657311,-864.88,0.00011095,2]
[352729109,1739280657321,-500.0,0.00011095,2]
[352729110,1739280657331,-500.0,0.00011095,2]
[352729111,1739280657340,-1265.85,0.00011095,2]
[352729112,1739280657349,-1067.75,0.00011095,2]
[352729113,1739280657359,-500.0,0.00011095,2]
[352729114,1739280657368,-500.0,0.00011095,2]
[352729115,1739280657377,-500.0,0.00011095,2]
[352729116,1739280657386,-500.0,0.00011095,2]
[352729117,1739280657395,-2328.6,0.00011095,2]
[352729118,1739280657404,-731.75,0.00011095,2]
[352729119,1739280657413,-500.0,0.00011095,2]
[352729120,1739280657422,-523.06,0.00011095,2]
[352729121,1739280657431,-1535.06,0.00011095,2]
[352729122,1739280657440,-500.0,0.00011095,2]
[352729123,1739280657450,-500.0,0.00011095,2]
[352729124,1739280657459,-500.0,0.00011095,2]
[352729125,1739280657468,-500.0,0.00011095,2]
[352729126,1739280657478,-683.08,0.00011095,2]
[352729127,1739280657487,-2180.47,0.00011095,2]
[352729128,1739280657496,-1734.23,0.00011095,2]
[352729129,1739280657506,-500.0,0.00011095,2]
[352729130,1739280657516,-500.0,0.00011095,2]
[352729131,1739280657525,-536.44396803,0.00011095,2]
[352729132,1739280657534,-2009.77,0.00011095,2]
[352729133,1739280657544,-1412.97,0.00011095,2]
[352729134,1739280657553,-1226.28,0.00011095,2]
[352729135,1739280657562,-550.78,0.00011095,2]
[352729136,1739280657572,-500.0,0.00011095,2]
[352729137,1739280657581,-500.0,0.00011095,2]
[352729138,1739280657590,-673.56,0.00011095,2]
[352729139,1739280657600,-500.0,0.00011095,2]
[352729140,1739280657609,-500.0,0.00011095,2]
[352729141,1739280657618,-1506.4,0.00011095,2]
[352729142,1739280657627,-502.10615212,0.00011095,2]
[352729143,1739280657636,-1062.82,0.00011095,2]
[352729144,1739280657645,-682.77,0.00011095,2]
[352729145,1739280657655,-656.38,0.00011095,2]
[352729146,1739280657663,-500.0,0.00011095,2]
[352729147,1739280657673,-1042.32,0.00011095,2]
[352729148,1739280657681,-1697.73,0.00011095,2]
[352729149,1739280657690,-2419.32,0.00011095,2]
[352729150,1739280657699,-1312.86,0.00011095,2]
[352729151,1739280657708,-578.24557691,0.00011095,2]
[352729152,1739280657717,-500.0,0.00011095,2]
[352729153,1739280657726,-665.08,0.00011095,2]
[352729154,1739280657736,-500.0,0.00011095,2]
[352729155,1739280657746,-1584.61,0.00011095,2]
[352729156,1739280657755,-3381.26,0.00011095,2]
[352729157,1739280657764,-1246.46,0.00011095,2]
[352729158,1739280657774,-3490.99,0.00011095,2]
[352729159,1739280657783,-500.0,0.00011095,2]
[352729160,1739280657792,-2048.73,0.00011095,2]
[352729161,1739280657801,-1014.75,0.00011095,2]
[352729162,1739280657811,-1827.08,0.00011095,2]
[352729163,1739280657823,-1904.04,0.00011095,2]
[352729164,1739280657832,-500.0,0.00011095,2]
[352729165,1739280657841,-1012.62,0.00011095,2]
[352729166,1739280657851,-500.0,0.00011095,2]
[352729167,1739280657861,-2057.77,0.00011095,2]
[352729168,1739280657870,-2490.54,0.00011095,2]
[352729169,1739280657880,-358.9288247,0.00011095,2]
[352729170,1739280657889,-508.80505818,0.00011095,2]
[352729171,1739280657900,-2665.93,0.00011095,2]
[352729172,1739280657910,-1884.66,0.00011095,2]
[352729173,1739280657919,-2212.08,0.00011095,2]
[352729174,1739280657929,-1783.85,0.00011095,2]
[352729175,1739280657938,-2153.24,0.00011095,2]
[352729176,1739280657947,-500.0,0.00011095,2]
[352729177,1739280657957,-1538.62,0.00011095,2]
[352729178,1739280657966,-500.0,0.00011095,2]
[352729179,1739280657975,-1386.47,0.00011095,2]
[352729180,1739280657985,-500.0,0.00011095,2]
[352729181,1739280657994,-1196.09,0.00011095,2]
[352729182,1739280658006,-276.28,0.00011095,2]
[352729183,1739280658015,-500.0,0.00011095,2]
[352729184,1739280658024,-1828.07,0.00011095,2]
[352729185,1739280658033,-880.19,0.00011095,2]
[352729186,1739280658043,-2100.82,0.00011095,2]
[352729187,1739280658053,-500.0,0.00011095,2]
[352729188,1739280658062,-500.0,0.00011095,2]
[352729189,1739280658071,-2410.54,0.00011095,2]
[352729190,1739280658081,-1422.19,0.00011095,2]
[352729191,1739280658090,-2100.84,0.00011095,2]
[352729192,1739280658100,-2899.84,0.00011095,2]
[352729193,1739280658110,-500.0,0.00011095,2]
[352729194,1739280658119,-1035.54,0.00011095,2]
[352729195,1739280658128,-1311.0,0.00011095,2]
[352729196,1739280658138,-500.0,0.00011095,2]
[352729197,1739280658146,-2817.66,0.00011095,2]
[352729198,1739280658156,-2368.17,0.00011095,2]
[352729199,1739280658165,-601.98,0.00011095,2]
[352729200,1739280658174,-500.0,0.00011095,2]
[352729201,1739280658182,-500.0,0.00011095,2]
[352729202,1739280658192,-2822.88,0.00011095,2]
[352729203,1739280658201,-653.12,0.00011095,2]
[352729204,1739280658211,-500.0,0.00011095,2]
[352729205,1739280658220,-2058.67,0.00011095,2]
[352729206,1739280658229,-1606.08,0.00011095,2]
[352729207,1739280658238,-5880.42,0.00011095,2]
[352729208,1739280658248,-504.16,0.00011095,2]
[352729209,1739280658257,-2313.56,0.00011095,2]
[352729210,1739280658267,-2017.66,0.00011095,2]
[352729211,1739280658276,-500.0,0.00011095,2]
[352729212,1739280658286,-2277.98,0.00011095,2]
[352729213,1739280658295,-2422.38,0.00011095,2]
[352729214,1739280658304,-500.0,0.00011095,2]
[352729215,1739280658314,-1974.18,0.00011095,2]
[352729216,1739280658323,-502.51348251,0.00011095,2]
[352729217,1739280658333,-3082.41,0.00011095,2]
[352729218,1739280658342,-1100.82,0.00011095,2]
[352729219,1739280658351,-500.0,0.00011095,2]
[352729220,1739280658361,-500.0,0.00011095,2]
[352729221,1739280658517,-258.99349926,0.00011095,2]
[352729222,1739280658526,-500.0,0.00011095,2]
[352729223,1739280658535,-2794.0,0.00011095,2]
[352729224,1739280658544,-7557.63,0.00011095,2]
[352729225,1739280658553,-500.0,0.00011095,2]
[352729226,1739280658562,-500.0,0.00011095,2]
[352729227,1739280658572,-1514.59,0.00011095,2]
[352729228,1739280658581,-2758.32,0.00011095,2]
[352729229,1739280658590,-500.0,0.00011095,2]
[352729230,1739280658601,-2055.38,0.00011095,2]
[352729231,1739280658610,-607.93,0.00011095,2]
[352729232,1739280658619,-3126.71,0.00011095,2]
[352729233,1739280658629,-500.0,0.00011095,2]
[352729234,1739280658639,-500.0,0.00011095,2]
[352729235,1739280658648,-1738.57,0.00011095,2]
[352729236,1739280658659,-3061.52,0.00011095,2]
[352729237,1739280658668,-5522.4,0.00011095,2]
[352729238,1739280658678,-1936.33,0.00011095,2]
[352729239,1739280658687,-500.0,0.00011095,2]
[352729240,1739280658697,-500.0,0.00011095,2]
[352729241,1739280658707,-500.0,0.00011095,2]
[352729242,1739280658716,-500.0,0.00011095,2]
[352729243,1739280658726,-2020.21,0.00011095,2]
[352729244,1739280658735,-500.0,0.00011095,2]
[352729245,1739280658744,-1943.41,0.00011095,2]
[352729246,1739280658754,-500.0,0.00011095,2]
[352729247,1739280658763,-500.0,0.00011095,2]
[352729248,1739280658773,-500.0,0.00011095,2]
[352729249,1739280658782,-620.19,0.00011095,2]
[352729250,1739280658791,-1254.85,0.00011095,2]
[352729251,1739280658800,-2345.35,0.00011095,2]
[352729252,1739280658809,-595.71,0.00011095,2]
[352729253,1739280658820,-501.71080473,0.00011095,2]
[352729254,1739280658830,-500.0,0.00011095,2]
[352729255,1739280658840,-500.0,0.00011095,2]
[352729256,1739280658849,-2480.99,0.00011095,2]
[352729257,1739280658859,-500.0,0.00011095,2]
[352729258,1739280658868,-500.0,0.00011095,2]
[352729259,1739280658878,-2449.61,0.00011095,2]
[352729260,1739280658889,-1287.43,0.00011095,2]
[352729261,1739280658899,-1906.34,0.00011095,2]
[352729262,1739280658909,-500.77989212,0.00011095,2]
[352729263,1739280658918,-3659.02,0.00011095,2]
[352729264,1739280658928,-500.0,0.00011095,2]
[352729265,1739280658937,-500.0,0.00011095,2]
[352729266,1739280658946,-1032.52,0.00011095,2]
[352729267,1739280658955,-1960.7,0.00011095,2]
[352729268,1739280658965,-2782.88,0.00011095,2]
[352729269,1739280658974,-500.0,0.00011095,2]
[352729270,1739280658983,-651.56,0.00011095,2]
[352729271,1739280658993,-500.0,0.00011095,2]
[352729272,1739280659004,-500.0,0.00011095,2]
[352729273,1739280659013,-1504.96,0.00011095,2]
[352729274,1739280659022,-500.0,0.00011095,2]
[352729275,1739280659031,-3416.78,0.00011095,2]
[352729276,1739280659041,-1015.34,0.00011095,2]
[352729277,1739280659050,-2046.98,0.00011095,2]
[352729278,1739280659059,-1377.43,0.00011095,2]
[352729279,1739280659068,-500.0,0.00011095,2]
[352729280,1739280659078,-2234.59,0.00011095,2]
[352729281,1739280659087,-3062.88,0.00011095,2]
[352729282,1739280659096,-500.0,0.00011095,2]
[352729283,1739280659106,-566.25,0.00011095,2]
[352729284,1739280659115,-997.32,0.00011095,2]
[352729285,1739280659124,-642.41,0.00011095,2]
[352729286,1739280659133,-1701.55,0.00011095,2]
[352729287,1739280659143,-500.0,0.00011095,2]
[352729288,1739280659152,-500.0,0.00011095,2]
[352729289,1739280659162,-500.0,0.00011095,2]
[352729290,1739280659171,-2171.57,0.00011095,2]
[352729291,1739280659180,-1261.12,0.00011095,2]
[352729292,1739280659189,-961.29,0.00011095,2]
[352729293,1739280659198,-856.37,0.00011095,2]
[352729294,1739280659207,-1815.54,0.00011095,2]
[352729295,1739280659216,-500.0,0.00011095,2]
[352729296,1739280659225,-1456.22,0.00011095,2]
[352729297,1739280659234,-1262.09,0.00011095,2]
[352729298,1739280659244,-502.75950749,0.00011095,2]
[352729299,1739280659255,-673.71,0.00011095,2]
[352729300,1739280659264,-500.0,0.00011095,2]
[352729301,1739280659278,-500.0,0.00011095,2]
[352729302,1739280659287,-3429.56,0.00011095,2]
[352729303,1739280659297,-500.0,0.00011095,2]
[352729304,1739280659306,-938.97,0.00011095,2]
[352729305,1739280659315,-500.0,0.00011095,2]
[352729306,1739280659324,-500.0,0.00011095,2]
[352729307,1739280659333,-1121.86,0.00011095,2]
[352729308,1739280659342,-775.76,0.00011095,2]
[352729309,1739280659351,-500.0,0.00011095,2]
[352729310,1739280659360,-1626.39,0.00011095,2]
[352729311,1739280659369,-1109.73,0.00011095,2]
[352729312,1739280659378,-500.0,0.00011095,2]
[352729313,1739280659388,-502.32489401,0.00011095,2]
[352729314,1739280659397,-500.0,0.00011095,2]
[352729315,1739280659406,-500.0,0.00011095,2]
[352729316,1739280659415,-500.0,0.00011095,2]
[352729317,1739280659425,-500.0,0.00011095,2]
[352729318,1739280659435,-500.0,0.00011095,2]
[352729319,1739280659444,-150.0,0.00011096,2]
[352729320,1739280659453,-407.71411659,0.00011099,2]
[352729321,1739280659463,-407.71411651,0.00011099,2]
[352729322,1739280659472,-150.0,0.000111,2]
[352729323,1739280659482,-407.71411651,0.00011101,2]
[352729324,1739280659491,-150.0,0.0001111,2]
[352729325,1739280659500,-150.0,0.00011114,2]
[352729326,1739280659510,-150.0,0.00011116,2]
[352729327,1739280659519,-150.0,0.00011117,2]
[352729328,1739280659529,-157.0,0.00011123,2]
[352729329,1739280659539,-600.0,0.00011134,2]
[352729330,1739280659548,-500.0,0.00011134,2]
[352729331,1739280659558,-150.0,0.00011138,2]
[352729332,1739280659568,-172.9679767,0.00011141,2]
[352729333,1739280659578,-150.0,0.00011143,2]
[352729334,1739280659587,-150.0,0.00011145,2]
[352729335,1739280659597,-150.0,0.00011153,2]
[352729336,1739280659606,-150.0,0.00011157,2]
[352729337,1739280659616,-150.0,0.00011168,2]
[352729338,1739280659625,-150.0,0.00011173,2]
[352729339,1739280659634,-150.0,0.00011184,2]
[352729340,1739280659644,-150.0,0.00011187,2]
[352729341,1739280659654,-150.0,0.00011191,2]
[352729342,1739280659664,-169.264937,0.00011192,2]
[352729343,1739280659673,-186.424732,0.00011192,2]
[352729344,1739280659682,-200.47,0.00011195,2]
[352729345,1739280659691,-1000.0,0.00011198,2]
[352729346,1739280659701,-1000.0,0.00011198,2]
[352729347,1739280659711,-1000.0,0.00011198,2]
[352729348,1739280659720,-1000.0,0.00011198,2]
[352729349,1739280659730,-1000.0,0.00011198,2]
[352729350,1739280659739,-1000.0,0.00011198,2]
[352729351,1739280659749,-1000.0,0.00011198,2]
[352729352,1739280659758,-1000.0,0.00011198,2]
[352729353,1739280659768,-1000.0,0.00011198,2]
[352729354,1739280659778,-1000.0,0.00011198,2]
[352729355,1739280659788,-1000.0,0.00011199,2]
[352729356,1739280659797,-1000.0,0.00011199,2]
[352729357,1739280659807,-1000.0,0.00011199,2]
[352729358,1739280659816,-1000.0,0.00011199,2]
[352729359,1739280659829,-1000.0,0.00011199,2]
[352729360,1739280659839,-1000.0,0.00011199,2]
[352729361,1739280659849,-1000.0,0.00011199,2]
[352729362,1739280659859,-1000.0,0.00011199,2]
[352729363,1739280659870,-1000.0,0.00011199,2]
[352729364,1739280659880,-1000.0,0.00011199,2]
[352729365,1739280659889,-391.08,0.000112,2]
[352729366,1739280659901,-150.0,0.000112,2]
[352729367,1739280659910,-58172.3722927,0.000112,2]
[352729368,1739280659920,-150.0,0.00011203,2]
[352729369,1739280659930,-150.0,0.00011206,2]
[352729370,1739280659939,-150.0,0.00011208,2]
[352729371,1739280659949,-150.0,0.00011211,2]
[352729372,1739280659958,-150.0,0.00011213,2]
[352729373,1739280659967,-150.0,0.00011218,2]
[352729374,1739280659977,-202.0,0.0001122,2]
[352729375,1739280659987,-407.71411651,0.00011223,2]
[352729376,1739280659997,-150.0,0.00011224,2]
[352729377,1739280660007,-150.0,0.00011225,2]
[352729378,1739280660016,-154.571206,0.00011229,2]
[352729379,1739280660027,-81264.88731175,0.00011229,2]
[352729380,1739280660036,-150.0,0.00011229,2]
[352729381,1739280660046,-300.0,0.00011231,2]
[352729382,1739280660055,-500.0,0.00011231,2]
[352729383,1739280660065,-500.0,0.00011231,2]
[352729384,1739280660075,-1000.0,0.00011231,2]
[352729385,1739280660085,-1000.0,0.00011231,2]
[352729386,1739280660095,-300.0,0.00011231,2]
[352729387,1739280660103,-311.0,0.00011232,2]
[352729388,1739280660112,-635.336871,0.00011232,2]
[352729389,1739280660122,-2080.906583,0.00011232,2]
[352729390,1739280660132,-156.067993,0.00011232,2]
[352729391,1739280660142,-152.536992,0.00011232,2]
[352729392,1739280660152,-156.213401,0.00011232,2]
[352729393,1739280660162,-500.0,0.00011232,2]
[352729394,1739280660172,-500.0,0.00011232,2]
[352729395,1739280660181,-400.0928646,0.00011232,2]
[352729396,1739280660190,-500.0,0.00011232,2]
[352729397,1739280660201,-500.0,0.00011232,2]
[352729398,1739280660210,-500.0,0.00011232,2]
[352729399,1739280660221,-500.0,0.00011232,2]
[352729400,1739280660230,-500.0,0.00011232,2]
[352729401,1739280660239,-500.0,0.00011232,2]
[352729402,1739280660249,-211.44325357,0.00011232,2]
[352729403,1739280660259,-500.0,0.00011232,2]
[352729404,1739280660269,-500.0,0.00011232,2]
[352729405,1739280660278,-500.0,0.00011232,2]
[352729406,1739280660288,-500.0,0.00011232,2]
[352729407,1739280660298,-491.3,0.00011232,2]
[352729408,1739280660307,-500.0,0.00011232,2]
[352729409,1739280660317,-500.0,0.00011232,2]
[352729410,1739280660327,-500.0,0.00011232,2]
[352729411,1739280660336,-500.0,0.00011232,2]
[352729412,1739280660346,-500.0,0.00011232,2]
[352729413,1739280660356,-500.0,0.00011232,2]
[352729414,1739280660366,-500.0,0.00011232,2]
[352729415,1739280660376,-500.0,0.00011232,2]
[352729416,1739280660385,-500.0,0.00011232,2]
[352729417,1739280660394,-500.0,0.00011232,2]
[352729418,1739280660404,-500.0,0.00011232,2]
[352729419,1739280660414,-500.0,0.00011232,2]
[352729420,1739280660423,-500.0,0.00011232,2]
[352729421,1739280660433,-500.0,0.00011232,2]
[352729422,1739280660442,-500.0,0.00011232,2]
[352729423,1739280660451,-622.80806401,0.00011232,2]
[352729424,1739280660461,-500.0,0.00011232,2]
[352729425,1739280660470,-500.0,0.00011232,2]
[352729426,1739280660479,-631.51098792,0.00011232,2]
[352729427,1739280660489,-500.0,0.00011232,2]
[352729428,1739280660499,-504.32866857,0.00011232,2]
[352729429,1739280660509,-500.0,0.00011232,2]
[352729430,1739280660519,-499.60087925,0.00011232,2]
[352729431,1739280660529,-500.0,0.00011232,2]
[352729432,1739280660539,-500.0,0.00011232,2]
[352729433,1739280660548,-500.0,0.00011232,2]
[352729434,1739280660558,-500.0,0.00011232,2]
[352729435,1739280660570,-500.0,0.00011232,2]
[352729436,1739280660579,-500.0,0.00011232,2]
[352729437,1739280660590,-572.79440881,0.00011232,2]
[352729438,1739280660600,-500.0,0.00011232,2]
[352729439,1739280660610,-500.0,0.00011232,2]
[352729440,1739280660620,-500.0,0.00011232,2]
[352729441,1739280660631,-500.0,0.00011232,2]
[352729442,1739280660641,-500.0,0.00011232,2]
[352729443,1739280660650,-500.0,0.00011232,2]
[352729444,1739280660660,-151.0,0.00011232,2]
[352729445,1739280660670,-151.0,0.00011232,2]
[352729446,1739280660680,-500.0,0.00011232,2]
[352729447,1739280660690,-500.0,0.00011232,2]
[352729448,1739280660700,-500.0,0.00011232,2]
[352729449,1739280660710,-455.5409131,0.00011232,2]
[352729450,1739280660719,-500.0,0.00011232,2]
[352729451,1739280660728,-500.0,0.00011232,2]
[352729452,1739280660737,-500.0,0.00011232,2]
[352729453,1739280660747,-455.92333883,0.00011232,2]
[352729454,1739280660759,-500.0,0.00011232,2]
[352729455,1739280660768,-500.0,0.00011232,2]
[352729456,1739280660777,-233.61288434,0.00011232,2]
[352729457,1739280660787,-500.0,0.00011232,2]
[352729458,1739280660796,-500.0,0.00011232,2]
[352729459,1739280660805,-500.0,0.00011232,2]
[352729460,1739280660814,-500.0,0.00011232,2]
[352729461,1739280660828,-500.0,0.00011232,2]
[352729462,1739280660838,-500.0,0.00011232,2]
[352729463,1739280660848,-601.18,0.00011232,2]
[352729464,1739280660859,-500.0,0.00011232,2]
[352729465,1739280660870,-500.0,0.00011232,2]
[352729466,1739280660880,-500.0,0.00011232,2]
[352729467,1739280660891,-457.76545564,0.00011232,2]
[352729468,1739280660903,-500.0,0.00011232,2]
[352729469,1739280660914,-500.0,0.00011232,2]
[352729470,1739280660924,-500.0,0.00011232,2]
[352729471,1739280660934,-500.0,0.00011232,2]
[352729472,1739280660943,-500.0,0.00011232,2]
[352729473,1739280660953,-500.0,0.00011232,2]
[352729474,1739280660963,-500.0,0.00011232,2]
[352729475,1739280660973,-500.0,0.00011232,2]
[352729476,1739280660985,-500.0,0.00011232,2]
[352729477,1739280660994,-500.0,0.00011232,2]
[352729478,1739280661009,-500.0,0.00011232,2]
[352729479,1739280661019,-500.0,0.00011232,2]
[352729480,1739280661177,-500.0,0.00011232,2]
[352729481,1739280661188,-500.0,0.00011232,2]
[352729482,1739280661198,-500.0,0.00011232,2]
[352729483,1739280661209,-500.0,0.00011232,2]
[352729484,1739280661218,-611.75,0.00011232,2]
[352729485,1739280661228,-500.0,0.00011232,2]
[352729486,1739280661237,-500.0,0.00011232,2]
[352729487,1739280661247,-500.0,0.00011232,2]
[352729488,1739280661260,-500.0,0.00011232,2]
[352729489,1739280661270,-500.0,0.00011232,2]
[352729490,1739280661280,-500.0,0.00011232,2]
[352729491,1739280661290,-578.70506836,0.00011232,2]
[352729492,1739280661299,-919.33,0.00011232,2]
[352729493,1739280661309,-500.0,0.00011232,2]
[352729494,1739280661319,-657.54,0.00011232,2]
[352729495,1739280661329,-500.0,0.00011232,2]
[352729496,1739280661338,-532.35,0.00011232,2]
[352729497,1739280661348,-500.0,0.00011232,2]
[352729498,1739280661357,-500.0,0.00011232,2]
[352729499,1739280661368,-500.0,0.00011232,2]
[352729500,1739280661378,-500.0,0.00011232,2]
[352729501,1739280661388,-500.0,0.00011232,2]
[352729502,1739280661398,-1065.94,0.00011232,2]
[352729503,1739280661407,-990.82,0.00011232,2]
[352729504,1739280661417,-500.0,0.00011232,2]
[352729505,1739280661427,-500.0,0.00011232,2]
[352729506,1739280661436,-500.0,0.00011232,2]
[352729507,1739280661446,-701.7,0.00011232,2]
[352729508,1739280661455,-500.0,0.00011232,2]
[352729509,1739280661465,-500.0,0.00011232,2]
[352729510,1739280661475,-500.0,0.00011232,2]
[352729511,1739280661485,-778.68,0.00011232,2]
[352729512,1739280661495,-500.0,0.00011232,2]
[352729513,1739280661508,-754.94,0.00011232,2]
[352729514,1739280661518,-602.76,0.00011232,2]
[352729515,1739280661528,-500.0,0.00011232,2]
[352729516,1739280661537,-500.0,0.00011232,2]
[352729517,1739280661547,-862.47,0.00011232,2]
[352729518,1739280661556,-500.0,0.00011232,2]
[352729519,1739280661566,-500.0,0.00011232,2]
[352729520,1739280661575,-500.0,0.00011232,2]
[352729521,1739280661585,-500.0,0.00011232,2]
[352729522,1739280661595,-500.0,0.00011232,2]
[352729523,1739280661605,-500.0,0.00011232,2]
[352729524,1739280661614,-500.0,0.00011232,2]
[352729525,1739280661623,-500.0,0.00011232,2]
[352729526,1739280661632,-500.0,0.00011232,2]
[352729527,1739280661642,-950.78,0.00011232,2]
[352729528,1739280661651,-346.32723866,0.00011232,2]
[352729529,1739280661660,-500.0,0.00011232,2]
[352729530,1739280661670,-500.0,0.00011232,2]
[352729531,1739280661680,-700.19,0.00011232,2]
[352729532,1739280661690,-709.86,0.00011232,2]
[352729533,1739280661700,-798.47,0.00011232,2]
[352729534,1739280661709,-594.81,0.00011232,2]
[352729535,1739280661719,-500.0,0.00011232,2]
[352729536,1739280661729,-500.0,0.00011232,2]
[352729537,1739280661739,-1200.0,0.00011232,2]
[352729538,1739280661751,-1200.0,0.00011232,2]
[352729539,1739280661761,-1200.0,0.00011232,2]
[352729540,1739280661772,-812.73,0.00011232,2]